Workbook

Sheet Hitelkalkulátor
B2: DIÁKHITEL- | G2: 5,000,000 Ft | L2: 2011-05-10
B3: KALKULÁTOR
B5: A diákhitelek törlesztőrészleteinek havi összege a diploma megszerzése utáni első évben lehetőleg ne haladja meg az egész évi fizetés 8%-át.
C7: A havonta fizetett törlesztőrészlet jelenleg összesen: | F7: =DiákHitelek[[#Totals],[Jelenlegi havi törlesztés]] -> 32,858.59 Ft | I7: A havonta tervezett törlesztőrészlet összesen: | M7: =DiákHitelek[[#Totals],[Tervezett törlesztés]] -> 32,858.59 Ft
C8: A havi jövedelem arányában: | F8: =DiákHitelek[[#Totals],[Jelenlegi havi törlesztés]]/BecsültHaviFizetés -> 7.89% | I8: A havi jövedelem arányában: | M8: =DiákHitelek[[#Totals],[Tervezett törlesztés]]/BecsültHaviFizetés -> 7.89%
C11: ÁLTALÁNOS HITELADATOK | G11: HITELTÖRLESZTÉSI ADATOK | J11: FIZETÉSI ADATOK
C12: Hitel száma | D12: Hitelező | E12: Hitel összege | F12: Éves kamatláb | G12: Kezdő dátum | H12: Időtartam (év) | I12: Záró dátum | J12: Jelenlegi havi törlesztés | K12: Kamat összesen | L12: Tervezett törlesztés | M12: Éves törlesztés
C13: 10998M88 | D13: 1. hitelező | E13: 1,000,000.00 Ft | F13: 5.00% | G13: 2011-04-01 | H13: 10 | I13: =IF(AND(DiákHitelek[[#This Row],[Kezdő dátum]]>0,DiákHitelek[[#This Row],[Időtartam (év)]]>0),EDATE(DiákHitelek[[#This Row],[Kezdő dátum]],DiákHitelek[[#This Row],[Időtartam (év)]]*12),"") -> 2021-04-01 | J13: =IF(AND(HitelKezdőHNap,COUNT(DiákHitelek[[#This Row],[Hitel összege]]:DiákHitelek[[#This Row],[Időtartam (év)]])=4,DiákHitelek[[#This Row],[Kezdő dátum]]<TODAY()),PMT(DiákHitelek[[#This Row],[Éves kamatláb]]/12,DiákHitelek[[#This Row],[Időtartam (év)]]*12,-DiákHitelek[[#This Row],[Hitel összege]],0,0),"") -> 10,606.55 Ft | K13: =IFERROR((DiákHitelek[[#This Row],[Tervezett törlesztés]]*(DiákHitelek[[#This Row],[Időtartam (év)]]*12))-DiákHitelek[[#This Row],[Hitel összege]],"") -> 272,786.18 Ft | L13: =IF(COUNTA(DiákHitelek[[#This Row],[Hitel összege]:[Időtartam (év)]])<>4,"",PMT(DiákHitelek[[#This Row],[Éves kamatláb]]/12,DiákHitelek[[#This Row],[Időtartam (év)]]*12,-DiákHitelek[[#This Row],[Hitel összege]],0,0)) -> 10,606.55 Ft | M13: =IFERROR(DiákHitelek[[#This Row],[Tervezett törlesztés]]*12,"") -> 127,278.62 Ft
C14: 20987N87 | D14: 2. hitelező | E14: 800,000.00 Ft | F14: 5.00% | G14: 2011-05-01 | H14: 10 | I14: =IF(AND(DiákHitelek[[#This Row],[Kezdő dátum]]>0,DiákHitelek[[#This Row],[Időtartam (év)]]>0),EDATE(DiákHitelek[[#This Row],[Kezdő dátum]],DiákHitelek[[#This Row],[Időtartam (év)]]*12),"") -> 2021-05-01 | J14: =IF(AND(HitelKezdőHNap,COUNT(DiákHitelek[[#This Row],[Hitel összege]]:DiákHitelek[[#This Row],[Időtartam (év)]])=4,DiákHitelek[[#This Row],[Kezdő dátum]]<TODAY()),PMT(DiákHitelek[[#This Row],[Éves kamatláb]]/12,DiákHitelek[[#This Row],[Időtartam (év)]]*12,-DiákHitelek[[#This Row],[Hitel összege]],0,0),"") -> 8,485.24 Ft | K14: =IFERROR((DiákHitelek[[#This Row],[Tervezett törlesztés]]*(DiákHitelek[[#This Row],[Időtartam (év)]]*12))-DiákHitelek[[#This Row],[Hitel összege]],"") -> 218,228.95 Ft | L14: =IF(COUNTA(DiákHitelek[[#This Row],[Hitel összege]:[Időtartam (év)]])<>4,"",PMT(DiákHitelek[[#This Row],[Éves kamatláb]]/12,DiákHitelek[[#This Row],[Időtartam (év)]]*12,-DiákHitelek[[#This Row],[Hitel összege]],0,0)) -> 8,485.24 Ft | M14: =IFERROR(DiákHitelek[[#This Row],[Tervezett törlesztés]]*12,"") -> 101,822.89 Ft
C15: 36785LM | D15: 3. hitelező | E15: 600,000.00 Ft | F15: 4.50% | G15: 2012-03-01 | H15: 10 | I15: =IF(AND(DiákHitelek[[#This Row],[Kezdő dátum]]>0,DiákHitelek[[#This Row],[Időtartam (év)]]>0),EDATE(DiákHitelek[[#This Row],[Kezdő dátum]],DiákHitelek[[#This Row],[Időtartam (év)]]*12),"") -> 2022-03-01 | J15: =IF(AND(HitelKezdőHNap,COUNT(DiákHitelek[[#This Row],[Hitel összege]]:DiákHitelek[[#This Row],[Időtartam (év)]])=4,DiákHitelek[[#This Row],[Kezdő dátum]]<TODAY()),PMT(DiákHitelek[[#This Row],[Éves kamatláb]]/12,DiákHitelek[[#This Row],[Időtartam (év)]]*12,-DiákHitelek[[#This Row],[Hitel összege]],0,0),"") -> 6,218.30 Ft | K15: =IFERROR((DiákHitelek[[#This Row],[Tervezett törlesztés]]*(DiákHitelek[[#This Row],[Időtartam (év)]]*12))-DiákHitelek[[#This Row],[Hitel összege]],"") -> 146,196.54 Ft | L15: =IF(COUNTA(DiákHitelek[[#This Row],[Hitel összege]:[Időtartam (év)]])<>4,"",PMT(DiákHitelek[[#This Row],[Éves kamatláb]]/12,DiákHitelek[[#This Row],[Időtartam (év)]]*12,-DiákHitelek[[#This Row],[Hitel összege]],0,0)) -> 6,218.30 Ft | M15: =IFERROR(DiákHitelek[[#This Row],[Tervezett törlesztés]]*12,"") -> 74,619.65 Ft
C16: 765R43 | D16: 4. hitelező | E16: 400,000.00 Ft | F16: 5.00% | G16: 2012-05-01 | H16: 5 | I16: =IF(AND(DiákHitelek[[#This Row],[Kezdő dátum]]>0,DiákHitelek[[#This Row],[Időtartam (év)]]>0),EDATE(DiákHitelek[[#This Row],[Kezdő dátum]],DiákHitelek[[#This Row],[Időtartam (év)]]*12),"") -> 2017-05-01 | J16: =IF(AND(HitelKezdőHNap,COUNT(DiákHitelek[[#This Row],[Hitel összege]]:DiákHitelek[[#This Row],[Időtartam (év)]])=4,DiákHitelek[[#This Row],[Kezdő dátum]]<TODAY()),PMT(DiákHitelek[[#This Row],[Éves kamatláb]]/12,DiákHitelek[[#This Row],[Időtartam (év)]]*12,-DiákHitelek[[#This Row],[Hitel összege]],0,0),"") -> 7,548.49 Ft | K16: =IFERROR((DiákHitelek[[#This Row],[Tervezett törlesztés]]*(DiákHitelek[[#This Row],[Időtartam (év)]]*12))-DiákHitelek[[#This Row],[Hitel összege]],"") -> 52,909.61 Ft | L16: =IF(COUNTA(DiákHitelek[[#This Row],[Hitel összege]:[Időtartam (év)]])<>4,"",PMT(DiákHitelek[[#This Row],[Éves kamatláb]]/12,DiákHitelek[[#This Row],[Időtartam (év)]]*12,-DiákHitelek[[#This Row],[Hitel összege]],0,0)) -> 7,548.49 Ft | M16: =IFERROR(DiákHitelek[[#This Row],[Tervezett törlesztés]]*12,"") -> 90,581.92 Ft
C17: Összegek | E17: =SUBTOTAL(109,DiákHitelek[Hitel összege]) -> 2,800,000.00 Ft | J17: =SUBTOTAL(109,DiákHitelek[Jelenlegi havi törlesztés]) -> 32,858.59 Ft | K17: =SUBTOTAL(109,DiákHitelek[Kamat összesen]) -> 690,121.28 Ft | L17: =SUBTOTAL(109,DiákHitelek[Tervezett törlesztés]) -> 32,858.59 Ft | M17: =SUBTOTAL(109,DiákHitelek[Éves törlesztés]) -> 394,303.09 Ft
C18: Átlagok | E18: =AVERAGE(DiákHitelek[Hitel összege]) -> 700,000.00 Ft | F18: =AVERAGE(DiákHitelek[Éves kamatláb]) -> 4.88% | K18: =AVERAGE(DiákHitelek[Kamat összesen]) -> 172,530.32 Ft | M18: =AVERAGE(DiákHitelek[Éves törlesztés]) -> 98,575.77 Ft
K20: Teljes konszolidált hiteltörlesztés: | M20: =DiákHitelek[[#Totals],[Hitel összege]]+DiákHitelek[[#Totals],[Kamat összesen]] -> 3,490,121.28 Ft
K22: Becsült havi jövedelem a diploma után: | M22: =(BecsültÉvesFizetés/12) -> 416,666.67 Ft
